Cogmind - Beta 9.2 @@@ ROGUE MODE // 2019.12.09 @ 01:48:13 Player: Trione Result: Destroyed by as-49395 with Assembled Blade Performance ------------- Evolutions (0) 0 Regions Visited (4) 800 Robots Destroyed (35) 175 Value Destroyed (328) 328 Prototype IDs (22) 440 Alien Tech Used (0) 0 Bonus (76) 76 TOTAL SCORE: 1819 Bonus ------- Aligned with FarCom 300 Friendly Fire -224 Cogmind --------- Core Integrity 0/250 Matter 243/300 Energy 265/265 System Corruption 1% Temperature Cool (20) Movement Core (1250) Ox24 Location -9/Mines Parts ------- > --- POWER (1) -------- Reinforced Ion Engine > --- PROPULSION (2) --- (None) > --- UTILITY (2) ------ High-capacity Storage Unit High-capacity Storage Unit > --- WEAPON (2) ------- (None) > --- INVENTORY (20) --- Light Angular Momentum Engine High-capacity Storage Unit High-capacity Storage Unit High-capacity Storage Unit Superbattery (2000) Trap Reconfigurator EM Shotgun EM Shotgun Beamcaster Assault Rifle XL Autogun Array Heavy Hammer Heavy Hammer Peak State ------------ > --- POWER ------------ Reinforced Ion Engine > --- PROPULSION ------- Wheel Wheel > --- UTILITY ---------- High-capacity Storage Unit High-capacity Storage Unit > --- WEAPON ----------- EM Shotgun EM Shotgun > --- INVENTORY -------- Light Angular Momentum Engine Light Treads Light Treads High-capacity Storage Unit High-capacity Storage Unit High-capacity Storage Unit Superbattery Trap Reconfigurator EM Shotgun Beamcaster Assault Rifle Assault Rifle Assault Rifle XL Autogun Array Datajack Heavy Hammer Heavy Hammer [Rating: 18] Favorites ----------- Power Reinforced Ion Engine Engine Reinforced Ion Engine Propulsion Light Treads Treads Light Treads Wheel Wheel Utility High-capacity Storage Unit Storage High-capacity Storage Unit Weapon Assault Rifle Energy Gun EM Shotgun Ballistic Gun Assault Rifle Impact Weapon Heavy Hammer Build | -11 -10 -10 -10 -9 ------- Run | Scr Mat Min Exi Min Slots Evolved . | . . . . . Power . | . . . . . Propulsion . | . . . . . Utility . | . . . . . Weapon . | . . . . . Parts Attached 34 | 7 7 10 3 7 Power 3 | 1 1 . 1 . Engine 3 | 1 1 . 1 . Core . | . . . . . Reactor . | . . . . . Propulsion 11 | 2 1 4 2 2 Treads 5 | . . 3 . 2 Leg . | . . . . . Wheel 6 | 2 1 1 2 . Hover . | . . . . . Flight . | . . . . . Utility 5 | 2 3 . . . Device . | . . . . . Storage 5 | 2 3 . . . Processor . | . . . . . Hackware . | . . . . . Protection . | . . . . . Artifact . | . . . . . Weapon 15 | 2 2 6 . 5 Energy Gun 6 | 2 . 2 . 2 Energy Cannon . | . . . . . Ballistic Gun 6 | . 2 2 . 2 Ballistic Cannon . | . . . . . Launcher . | . . . . . Special Weapon . | . . . . . Impact Weapon 2 | . . 2 . . Slashing Weapon . | . . . . . Piercing Weapon . | . . . . . Special Melee Weapon 1 | . . . . 1 Unidentified Prototypes . | . . . . . Parts Lost 13 | . 3 2 . 8 Power . | . . . . . Propulsion 7 | . 2 1 . 4 Utility . | . . . . . Weapon 6 | . 1 1 . 4 Highest Loss Streak 8 | . 2 1 . 8 Average Slot Usage (%) 98 | . 97 99 100 71 Engine 14 | . 14 14 14 14 Treads 14 | . . 21 17 4 Wheel 12 | . 25 6 10 9 Storage 28 | . 28 28 28 28 Energy Gun 6 | . 10 6 . 4 Ballistic Gun 14 | . 17 13 14 9 Impact Weapon 6 | . . 7 14 . Naked Turns . | . . . . . Heaviest Build 80 | 15 78 80 79 79 Greatest Support 40 | 26 26 40 40 20 Greatest Overweight (x) 7 | . 7 7 3 7 Average Overweight (x) 1 | . . 1 1 5 Largest Inventory Capacity 20 | 8 20 20 20 20 Average Capacity 17 | 5 13 20 20 20 Most Carried 20 | 7 18 20 20 20 Average Carried 15 | 4 10 18 18 18 Final Capacity 20 | 8 20 20 20 20 Final Carried 20 | 7 18 18 20 16 Class Distribution -------------------- 81% | Hauler-Mutant 18% | Mutant Dominant Class ---------------- Mutant | -10/Materials Hauler-Mutant | -10/Mines Hauler-Mutant | -10/Exiles Hauler-Mutant | -9/Mines Resources | -11 -10 -10 -10 -9 ----------- Run | Scr Mat Min Exi Min Matter Collected 701 | 266 261 174 . . Remotely . | . . . . . Salvage Created 1066 | 125 442 499 . . Parts 62 | 4 34 24 . . Haulers Intercepted 2 | . 2 . . . Recyclers Shooed . | . . . . . Parts Field Recycled . | . . . . . Retrieved Matter . | . . . . . Parts Self-Destructed . | . . . . . Prevented . | . . . . . Kills | -11 -10 -10 -10 -9 ------- Run | Scr Mat Min Exi Min Combat Hostiles Destroyed 19 | . 12 6 . 1 Melee 3 | . . 2 . 1 Guns 16 | . 12 4 . . Classes Destroyed 9 | 2 5 1 . 1 Worker 3 | . . 3 . . Builder 3 | . 2 1 . . Tunneler 2 | 1 . 1 . . Hauler 2 | . 2 . . . Recycler 4 | 1 . 3 . . Operator 1 | . 1 . . . Swarmer 15 | . 9 6 . . Grunt 3 | . 3 . . . Assembled 1 | . . . . 1 Thug 1 | . . 1 . . Best Kill Streak 5 | 2 5 3 . 1 Combat Bots Only 3 | . 3 3 . 1 Max Kills in Single Turn 1 | 1 1 1 . 1 Gunslinging . | . . . . . Exploded . | . . . . . Melee 1 | . . 1 . 1 Uniques/NPCs Destroyed . | . . . . . Combat | -11 -10 -10 -10 -9 -------- Run | Scr Mat Min Exi Min Damage Taken 1760 | . 556 297 . 907 Core 275 | . 68 7 . 200 Absorbed by Shields . | . . . . . Core Remaining (%) 100 | 100 . . . . Volleys Fired 80 | 5 55 19 . 1 Largest 2 | 2 2 2 . 2 Hottest 90 | 80 80 90 . 40 Shots Fired 155 | 10 110 33 . 2 Gun 155 | 10 110 33 . 2 Cannon . | . . . . . Launcher . | . . . . . Special . | . . . . . Kinetic 94 | . 70 22 . 2 Thermal . | . . . . . Explosive . | . . . . . Electromagnetic 61 | 10 40 11 . . Robot Hit Streak 13 | 2 4 13 . 6 Robot Miss Streak 6 | 3 6 2 . . Penetration Max . | . . . . . Secondary Targets 5 | . 5 . . . Max Gunslinging Chain 1 | . 1 . . . Shots Hit Robots 93 | 4 52 35 . 2 Core Hits 43 | 2 22 18 . 1 Critical Hits 1 | . 1 . . . Critical Kills . | . . . . . Critical Parts Destroyed 1 | . 1 . . . Melee Attacks 35 | . . 35 . . Impact 35 | . . 35 . . Slashing . | . . . . . Piercing . | . . . . . Sneak Attacks 3 | . . 3 . . Combat Hostiles . | . . . . . Follow-up Attacks . | . . . . . Damage Inflicted 1502 | 103 692 675 . 32 Guns 1109 | 78 641 362 . 28 Cannons . | . . . . . Explosions 76 | 25 51 . . . Melee 313 | . . 313 . . Ramming 4 | . . . . 4 Kinetic 599 | . 400 171 . 28 Thermal 76 | 25 51 . . . Explosive . | . . . . . Electromagnetic 510 | 78 241 191 . . Impact 313 | . . 313 . . Slashing . | . . . . . Piercing . | . . . . . Highest Corruption 1 | . . . . 1 Average Corruption 1 | . . . . 1 Corruption Purged . | . . . . . Overload Shots . | . . . . . Overflow Damage 135 | . . 135 . . Projectiles . | . . . . . Explosions . | . . . . . Melee 135 | . . 135 . . Knockbacks 1 | . . 1 . . Impact 1 | . . 1 . . Kinetic . | . . . . . Secondary . | . . . . . Self-Inflicted Damage 11 | . 11 . . . Shots 1 | . 1 . . . Rammed 2 | . . . . 2 Targets Rammed 3 | . . . . 3 Kicked . | . . . . . Crushed 1 | . . . . 1 Highest Temperature 126 | 72 108 126 . 17 Average Temperature 38 | 33 39 44 . 9 Received Heat Transfer 204 | . 84 . . 120 Siege Activations . | . . . . . Robots Corrupted 1 | . . 1 . . Combat Hostiles . | . . . . . Parts Fried 6 | . 2 4 . . Impact Corruptions 6 | . . 6 . . Robots Melted . | . . . . . Combat Hostiles . | . . . . . Parts Melted . | . . . . . Heat Transferred 150 | 50 100 . . . Parts Sabotaged . | . . . . . Parts Stolen . | . . . . . Parts Stripped . | . . . . . Power Chain Reactions 3 | 1 2 . . . Missiles Intercepted . | . . . . . Alert | -11 -10 -10 -10 -9 ------- Run | Scr Mat Min Exi Min Peak Influence 215 | 10 215 90 . . Average Influence 53 | 3 108 28 . . Maximum Alert Level 1 | . 1 . . . Low Security (%) 92 | 100 77 100 . 100 Level 1 7 | . 22 . . . Level 2 . | . . . . . Level 3 . | . . . . . Level 4 . | . . . . . Level 5 . | . . . . . High Security . | . . . . . Max Security . | . . . . . Squads Dispatched 2 | . 2 . . . Investigation 2 | . 2 . . . Extermination . | . . . . . Reinforcement . | . . . . . Assault . | . . . . . Garrison . | . . . . . Intercept . | . . . . . Construction Impeded . | . . . . . Haulers Reinforced . | . . . . . Stealth | -11 -10 -10 -10 -9 --------- Run | Scr Mat Min Exi Min Distress Signals 2 | . 2 . . . Communications Jammed . | . . . . . Distress Signals . | . . . . . Times Spotted 51 | . 24 7 . 20 Peak Tracking Total 20 | . 5 3 . 20 Tactical Retreats 2 | . 1 . . 1 Traps | -11 -10 -10 -10 -9 ------- Run | Scr Mat Min Exi Min Traps Triggered 2 | . 2 . . . Indirectly . | . . . . . Trap Hack Attempts . | . . . . . Triggered . | . . . . . Disarmed . | . . . . . Reprogrammed . | . . . . . Reused . | . . . . . Traps Extracted . | . . . . . Installed . | . . . . . Triggered . | . . . . . Exploded 1 | . . . 1 . Machines | -11 -10 -10 -10 -9 ---------- Run | Scr Mat Min Exi Min Machines Disabled . | . . . . . Max in Single Turn . | . . . . . Machines Sabotaged . | . . . . . Garrisons Compromised . | . . . . . Overloaded Fab Kills . | . . . . . Fab Network Shutdowns . | . . . . . Hacking | -11 -10 -10 -10 -9 --------- Run | Scr Mat Min Exi Min Machines Accessed 10 | . 8 1 1 . Terminals 9 | . 8 1 . . Fabricators . | . . . . . Repair Stations . | . . . . . Recycling Units . | . . . . . Scanalyzers . | . . . . . Garrison Access . | . . . . . Total Hacks 24 | . 22 1 1 . Successful 10 | . 8 1 1 . Failed 14 | . 14 . . . Catastrophic 1 | . 1 . . . Database Lockouts . | . . . . . Manual 24 | . 22 1 1 . Terminals 23 | . 22 1 . . Fabricators . | . . . . . Repair Stations . | . . . . . Recycling Units . | . . . . . Scanalyzers . | . . . . . Garrison Access . | . . . . . Terminal Hacks 4 | . 2 1 1 . Zone Layout 3 | . 2 1 . . EX-Prototype ID Bank 1 | . . . 1 . Fabricator Hacks . | . . . . . Repair Station Hacks . | . . . . . Recycling Unit Hacks . | . . . . . Scanalyzer . | . . . . . Garrison Access Hacks . | . . . . . Unauthorized Hacks 20 | . 20 . . . Terminals 6 | . 6 . . . Track 3 | . 3 . . . Botnet 3 | . 3 . . . Fabricators . | . . . . . Repair Stations . | . . . . . Recycling Units . | . . . . . Scanalyzers . | . . . . . Garrison Access . | . . . . . Data Cores Recovered 1 | . 1 . . . Used 1 | . 1 . . . Hacking Detections 8 | . 7 1 . . Full Trace Events . | . . . . . Feedback Events . | . . . . . Feedback Blocked . | . . . . . Robot Schematics Acquired . | . . . . . Robots Built . | . . . . . Matter . | . . . . . Time . | . . . . . Total Robot Build Rating . | . . . . . Part Schematics Acquired . | . . . . . Parts Built . | . . . . . Matter . | . . . . . Time . | . . . . . Total Part Build Rating . | . . . . . Parts Repaired . | . . . . . Time . | . . . . . Parts Recycled . | . . . . . Recycled Matter . | . . . . . Retrieved Matter . | . . . . . Retrieved Components . | . . . . . Parts Scanalyzed . | . . . . . Part Schematics Acquired . | . . . . . Parts Damaged . | . . . . . Bothacking | -11 -10 -10 -10 -9 ------------ Run | Scr Mat Min Exi Min Used RIF Installer . | . . . . . Robots Hacked . | . . . . . Non-combat . | . . . . . Combat . | . . . . . Robot Hacks Applied . | . . . . . Relay Couplers Released . | . . . . . Robots Rewired . | . . . . . Allies Hacked . | . . . . . Hacks Repelled . | . . . . . Allies | -11 -10 -10 -10 -9 -------- Run | Scr Mat Min Exi Min Total Allies 1 | . . 1 . . Largest Group 1 | . . 1 . . Highest-Rated Group 31 | . . 31 . . Highest-Rated Ally 31 | . . 31 . . Total Orders . | . . . . . Ally Attacks . | . . . . . Total Damage . | . . . . . Kills . | . . . . . Allies Corrupted . | . . . . . Allies Melted . | . . . . . Intel | -11 -10 -10 -10 -9 ------- Run | Scr Mat Min Exi Min Robot Analysis Total . | . . . . . Derelict Logs Recovered 3 | . . 3 . . Drone Launches . | . . . . . Drone Recoveries . | . . . . . Exploration | -11 -10 -10 -10 -9 ------------- Run | Scr Mat Min Exi Min Turns Passed 3082 | 89 847 1625 494 27 Spaces Moved 1905 | 65 637 883 315 5 Core 3 | 3 . . . . Treads 783 | . . 608 175 . Legs . | . . . . . Wheels 1119 | 62 637 275 140 5 Hover . | . . . . . Flight . | . . . . . Fastest Speed 50 | 50 90 110 110 110 Average Speed 135 | 87 100 159 148 134 Slowest Speed 180 | 90 150 180 180 150 Overloaded Moves . | . . . . . Propulsion Burnouts . | . . . . . Robots Hopped . | . . . . . Cave-ins Triggered . | . . . . . Exploration Rate (%) 54 | 4 92 99 70 6 Regions Visited 4 Branch Regions 3 Pre-discovered Areas 2 | . . 2 . . Known Exits Taken . | . . . . . Unknown Exits Taken 4 | 1 1 1 1 . Scrap Searched 1 | . . 1 . . Spaces Dug 11 | . . 11 . . Terrain Destroyed 24 | 3 10 11 . . Melee 11 | . . 11 . . Projectile . | . . . . . AOE 13 | 3 10 . . . Actions | -11 -10 -10 -10 -9 --------- Run | Scr Mat Min Exi Min Total 2168 | 83 733 995 340 17 Wait 68 | . 10 42 16 . Move 1901 | 64 636 882 314 5 Hop . | . . . . . Pick Up 32 | 7 17 5 3 . Fast Attach 7 | 7 . . . . Attach 9 | . 2 3 . 4 Detach . | . . . . . Swap 18 | . 5 7 3 3 Drop 14 | . 8 2 4 . Fire 80 | 5 55 19 . 1 Melee 35 | . . 35 . . Ram 1 | . . . . 1 Kick . | . . . . . Crush 2 | . . . . 2 Escape Stasis . | . . . . . Rewire 1 | . . . . 1 Trap . | . . . . . Miscellaneous . | . . . . . Route ------- -11/Scrapyard -10/Materials (discovered 4 exits: [*Mat x3] / *Min) -10/Mines (discovered 3 exits: [*Mat x2] / *Exi) -10/Exiles -9/Mines History --------- Turn | Location | Event 8 | -11/Scrapyard | Discovered new exit (range 16) 90 | -11/Scrapyard | Entered Materials 236 | -10/Materials | Discovered new exit (range 15) 307 | -10/Materials | Build established: Mutant 349 | -10/Materials | Discovered new exit (range 9) 664 | -10/Materials | Discovered new exit (range 4) 861 | -10/Materials | Build established: Hauler-Mutant 884 | -10/Materials | Discovered new exit (range 7) 937 | -10/Materials | Entered Mines 1085 | -10/Mines | Learned Materials trap positions 1091 | -10/Mines | Received a Mining Laser from a helpful Derelict 1171 | -10/Mines | Learned location of Zion (-6) 1174 | -10/Mines | Learned location of Storage (-7) 1183 | -10/Mines | Deemed a non-threat by the Exiles lab entrance 1184 | -10/Mines | Discovered new exit (range 5) 1712 | -10/Mines | Discovered new exit (range 5) 1970 | -10/Mines | Discovered new exit (range 12) 2562 | -10/Mines | Entered Exiles 2606 | -10/Exiles | Met 8R-AWN 2638 | -10/Exiles | Met EX-HEX 2723 | -10/Exiles | Met EX-DEC 2861 | -10/Exiles | Met EX-BIN 2886 | -10/Exiles | Aligned with FarCom system 2887 | -10/Exiles | Given EX-Vault access code 2913 | -10/Exiles | Opened EX-Vault 2923 | -10/Exiles | Found Superbattery 2929 | -10/Exiles | Found Trap Reconfigurator 2936 | -10/Exiles | Found XL Autogun Array 2960 | -10/Exiles | Warned to stay clear of 0b10 Research branches 2965 | -10/Exiles | Exiles lab attacked by MAIN.C 3028 | -10/Exiles | Discovered new exit (range 12) 3056 | -10/Exiles | Stole three prototypes: Superbattery, Trap Reconfigurator, XL Autogun Array 3056 | -10/Exiles | Entered Mines 3057 | -9/Mines | Assembled infested the area 3067 | -9/Mines | Core integrity fell below 50% 3081 | -9/Mines | Core integrity fell below 20% 3083 | -9/Mines | Destroyed by as-49395 with Assembled Blade Last Messages --------------- from the others." 03058_ DK-RAY destroyed. 03061_ as-41515 shuts down. 03062_ Datajack destroyed. 03062_ System corrupted by crushing effect (+1). 03063_ Wheel destroyed. 03063_ EM Shotgun destroyed. 03063_ Attempting to rewire as-41515. 03063_ as-41515 cannot be rewired. 03064_ as-90581 destroyed. 03068_ Wheel destroyed. 03069_ as-78350 destroyed. 03069_ T-07 Excavator destroyed. 03076_ Slammed into as-49395. 03077_ Crushed as-53801. 03077_ as-53801 destroyed. 03078_ Lgt. Treads destroyed. 03078_ Assault Rifle destroyed. 03079_ Slammed into as-49395. 03082_ Assault Rifle destroyed. Map ----- +----------------------------------------------------+ | ?????????????????????????????????????????????????? | | ?????????????????????????????????????????????????? | | ?????????????????????????????????????????????????? | | ?????????????????????????????????????????????????? | | ?????????????????????????????????????????????????? | | ?????????????????????????????????????????????????? | | ?????????????????????????????????????????????????? | | ?????????????????????????????????????????????????? | | ?????????????????????????????????????????????????? | | ?????????????????????????????????????????????????? | | ?????????????????????????????????????????????????? | | ?????????????????????????????????????????????????? | | ?????????????????????????????????????????????????? | | ?????????????????????????????????????????????????? | | ?????????????????????????????????? ????s???????? | | ?????????????????????????????????? ???sss??????? | | ????????????????????????????????? #????????????? | | ???????????????????????????????? ##????????????? | | ???????????????????????????????#*=! ?????????????? | | ??????????????????????????????# !%#??????????????? | | ?????????????????????????????# #???????????????? | | ???????????????????????????## #????????????????? | | ?????????????????????????## #?????????????????? | | ?????????????????????????# #?????????????????? | | ?????????????C??????????##a #?????????????????? | | ??????????????????????###@ #??????????????????? | | ?????????????????????## aa ##??????????????????? | | ???????????## ########a=a ##???????????????????? | | ??????????# % aa ##????????????????????? | | ?????????# a a ##?????????????????????? | | ????????# " ###########??????????????????????? | | ??????????? ???????????????????????????????????? | | ?????????????????????????????????????????????????? | | ?????????????????????????????????????????????????? | | ?????????????????????????????????????????????????? | | ?????????????????????????????????????????????????? | | ?????????????????????????????????????????????????? | | ?????????????????????????????????????????????????? | | ?????????????????????????????????????????????????? | | ?????????????????????????????????????????????????? | | ?????????????????????????????????????????????????? | | ?????????????????????????????????????????????????? | | ?????????????????????????????????????????????????? | | ?????????????????????????????????????????????????? | | ?????????????????????????????????????????????????? | | ?????????????????????????????????????????????????? | | ?????????????????????????????????????????????????? | | ?????????????????????????????????????????????????? | | ?????????????????????????????????????????????????? | | ?????????????????????????????????????????????????? | +----------------------------------------------------+ Best States ------------- Heat Dissipation 25 Energy Generation 12 Energy Capacity 265 Matter Stores 300 Matter Capacity 300 Sight Range 16 Terrain Scan Density 10 Evasion (%) 44 Recoil Reduction 2 Item Schematics ----------------- None Robot Schematics ------------------ None Fabricated ------------ Nothing Alien Tech Used ----------------- None Achievements -------------- None Challenges ------------ None Game ------ Seed GravmagInsulatedRail Manual? 0 Play Time 00:20:05 Cumulative 847.9 hours Start 2019.12.09 @ 01:23:19 End 2019.12.09 @ 01:48:13 Sessions 1 Manual Loads 0 Difficulty Rogue Special Mode None Game No. 332 Rogue 332 Adventurer 0 Explorer 0 Win Type - Total 21 Types 11/1/7/0/0/0/2 Lore% 95 Gallery% 96 Achievement% 80 Wizard Run 0 Options --------- ASCII 0 Keyboard 0 Movement Vi Keybinds 0 Fullscreen 0 Font 12/Crisp Map View 76x50 Tactical HUD 1 Map Filters NONE Filters NONE Steam 1 RUN: aca0f878-82fb-4bf9-a5c5-3798e0994634